lending/lending_fUSD_20250411
["ID","MTS","AMOUNT","RATE_DAILY","PERIOD"]
[357682640,1744329689811,-467.53373805,0.00017078,2]
[357682642,1744329815380,-168.02469456,0.00016941,2]
[357682644,1744329963287,-31.97530544,0.00016941,2]
[357682645,1744329963312,-218.02469456,0.0001701,2]
[357682646,1744330042126,-31.97530544,0.0001701,2]
[357682647,1744330042147,-1321.59626195,0.00017078,2]
[357682648,1744330042169,-202.79,0.00018536,2]
[357682649,1744330042190,-174.54734728,0.00018536,2]
[357682650,1744330042212,-250.0,0.00018636,2]
[357682651,1744330042233,-250.0,0.00018636,2]
[357682652,1744330042255,-1000.0,0.00018847,2]
[357682653,1744330042276,-165.64,0.00018873,2]
[357682654,1744330042297,-304.74,0.00018885,2]
[357682655,1744330042319,-174.54734728,0.0001894,2]
[357682656,1744330042339,-250.0,0.00018957,2]
[357682657,1744330042359,-300.0,0.00019039,2]
[357682658,1744330042379,-7736.27286645,0.0001904,2]
[357682678,1744330231754,-419.38027886,0.00018987,2]
[357682680,1744330231881,-258.493,0.00018987,2]
[357682681,1744330231893,-593.33599145,0.00018987,2]
[357682682,1744330231905,-401.7502562,0.00018987,2]
[357682683,1744330231917,-353.58047349,0.00018987,2]
[357682684,1744330231928,-124.73541037,0.0001904,2]
[357682685,1744330231940,-1569.56510515,0.0001904,2]
[357682686,1744330231952,-400.04061336,0.0001904,2]
[357682687,1744330231964,-2348.329902,0.0001904,2]
[357682688,1744330232033,-521.61488064,0.0001904,2]
[357682689,1744330232046,-3188.50819286,0.0001904,2]
[357682690,1744330232057,-738.44822419,0.0001904,2]
[357682691,1744330232070,-27348.64228541,0.0001904,2]
[357682692,1744330232079,-15436.94346134,0.0001904,2]
[357682693,1744330232091,-8463.05653866,0.0001904,2]
[357682694,1744330232101,-8241.43,0.0001904,2]
[357682695,1744330232110,-845.65,0.00019062,2]
[357682696,1744330232121,-150.99,0.00019062,2]
[357682697,1744330232133,-1690.46892584,0.00019342,2]
[357682698,1744330232145,-98.66107416,0.00019342,2]
[357682699,1744330232154,-357.18892584,0.00019399,2]
[357682700,1744330232166,-422.3963079,0.00019399,2]
[357682701,1744330232233,-1031.92289906,0.00019399,2]
[357682702,1744330232245,-200.0,0.00019453,7]
[357682703,1744330232256,-188.08,0.00019453,2]
[357682704,1744330232267,-169.54,0.00019568,2]
[357682705,1744330232276,-1818.39600262,0.00019568,2]
[357682706,1744330232289,-872.98459677,0.00019568,2]
[357682707,1744330232335,-4976.92068711,0.00019568,2]
[357682719,1744330237939,-600.00000005,0.00019568,2]
[357682720,1744330237951,-638.58583752,0.00019568,2]
[357682721,1744330238036,-298.0,0.00019568,2]
[357682722,1744330238048,-795.10287593,0.00019568,2]
[357682723,1744330238057,-310.93950206,0.0001961,2]
[357682724,1744330238069,-8.34839794,0.0001961,2]
[357682725,1744330238078,-167.51768369,0.000198,23]
[357682726,1744330238088,-407.20525529,0.000198,2]
[357682727,1744330238131,-2846.97828577,0.000198,2]
[357682728,1744330238145,-3661.63815106,0.000198,2]
[357682729,1744330238157,-3084.16830788,0.000198,2]
[357682730,1744330238167,-14719.03081233,0.0001981,2]
[357682731,1744330238176,-1002.93,0.0001981,2]
[357682732,1744330238186,-646.16,0.0001981,2]
[357682733,1744330238195,-315.5523,0.00019886,2]
[357682734,1744330238205,-204.33888996,0.000199,2]
[357682735,1744330238214,-535.0696,0.000199,2]
[357682736,1744330238224,-1000.0,0.000199,2]
[357682737,1744330238234,-184.76997001,0.000199,2]
[357682738,1744330238243,-268.9476,0.000199,2]
[357682739,1744330238252,-262.70799523,0.000199,2]
[357682740,1744330238262,-6053.3387,0.000199,2]
[357682741,1744330238271,-321.61606804,0.000199,2]
[357682742,1744330238280,-500.0,0.00019973,2]
[357682743,1744330238290,-500.0,0.00019973,2]
[357682744,1744330238299,-420.58,0.00019976,3]
[357682745,1744330238308,-1103.1621362,0.00019986,2]
[357682746,1744330238318,-188.0178125,0.00019986,2]
[357682747,1744330238327,-21421.054673,0.00019986,2]
[357682748,1744330238336,-7302.6254629,0.00019986,2]
[357682749,1744330238345,-2378.2258335,0.00019986,2]
[357682750,1744330238355,-167.03500246,0.0001999,2]
[357682751,1744330238365,-195.48616048,0.00019999,2]
[357682752,1744330238374,-181.60434893,0.00019999,2]
[357682753,1744330238385,-762.0,0.0002,2]
[357682754,1744330238394,-198527.30359908,0.0002,2]
[357682761,1744330238474,-16022.92826305,0.0002,2]
[357682762,1744330238486,-692412.99462947,0.0002,2]
[357682763,1744330238497,-62146.94510648,0.0002,2]
[357682764,1744330240044,-581.83454568,0.0002,2]
[357682765,1744330241614,-4176.16996464,0.0002,2]
[357682766,1744330241626,-4380.20203533,0.0002,2]
[357682776,1744330242938,-522.5,0.0002,2]
[357682777,1744330243016,-158.5,0.0002,2]
[357682778,1744330243025,-532.00000005,0.0002,2]
[357682779,1744330243105,-38369.36799399,0.0002,2]
[357682784,1744330245835,-4069.24011853,0.0002,2]
[357682785,1744330246088,-752135.41127741,0.0002,2]
[357682786,1744330246100,-280.45,0.0002,2]
[357682787,1744330246117,-18577.14908064,0.0002,2]
[357682788,1744330246128,-15577.59074582,0.0002,2]
[357682789,1744330246161,-400.0,0.0002,2]
[357682790,1744330246172,-330.96594672,0.0002,2]
[357682791,1744330246183,-645.75968916,0.0002,2]
[357682792,1744330246314,-2082.9365688,0.0002,2]
[357682793,1744330246325,-409.14193754,0.0002,2]
[357682795,1744330246336,-282.78234949,0.0002,2]
[357682796,1744330246347,-4252.37627783,0.0002,2]
[357682797,1744330246380,-14963.26533949,0.0002,2]
[357682798,1744330246392,-3983.62965,0.0002,2]
[357682800,1744330246403,-1000.0,0.0002,2]
[357683035,1744330266861,-383.86962925,0.00019399,2]
[357683036,1744330311886,-383.86962925,0.00019399,2]
[357683037,1744330393793,-184.67912141,0.00018947,7]
[357683038,1744330452624,162.1858375,0.00033,120]
[357683039,1744330533714,-15.32087859,0.00018947,7]
[357683040,1744330533743,-250.0,0.00019,2]
[357683041,1744330533770,-652.81,0.00019126,2]
[357683042,1744330533801,-200.0,0.00019244,2]
[357683043,1744330533829,-1262.6636923,0.00019399,2]
[357683044,1744330533856,-300.0,0.000198,7]
[357683045,1744330533889,-500.0,0.00019899,2]
[357683046,1744330533916,-300.0,0.00019899,2]
[357683047,1744330533943,-600.0,0.000199,7]
[357683048,1744330533971,-8201.38516915,0.000199,2]
[357683049,1744330534001,-236.43719568,0.000199,2]
[357683050,1744330534038,-1000.0,0.000199,2]
[357683051,1744330534065,-765.8086,0.000199,2]
[357683052,1744330534096,-175.14761994,0.000199,2]
[357683053,1744330534125,-500.0,0.00019973,2]
[357683054,1744330534154,-340.46133964,0.00019973,2]
[357683055,1744330534184,-500.0,0.00019973,2]
[357683056,1744330534213,-1249.1348197,0.00019986,2]
[357683057,1744330534242,-7950.830685,0.00019986,2]
[357683058,1744330535349,-16029.2228982,0.00019986,2]
[357683059,1744330535375,-7190.4871088,0.00019986,2]
[357683060,1744330535401,-618.0,0.0002,2]
[357683061,1744330535428,-1162.289993,0.0002,2]
[357683062,1744330535518,-25000.0,0.0002,2]
[357683063,1744330536299,-25000.0,0.0002,2]
[357683064,1744330537296,-25000.0,0.0002,2]
[357683065,1744330538054,-10605.66276588,0.0002,2]
[357683066,1744330538082,-150.0,0.0002,2]
[357683067,1744330538112,-151.26312975,0.0002,2]
[357683068,1744330538139,-14093.07410437,0.0002,21]
[357683069,1744330538873,-21101.92589563,0.0002,21]
[357683070,1744330538902,-3898.07410437,0.0002,2]
[357683071,1744330539633,-25000.0,0.0002,2]
[357683072,1744330545357,-625.0,0.0002,2]
[357683073,1744330545384,-37375.0,0.0002,2]
[357683074,1744330678652,170.4,0.00015158,2]
[357683075,1744330827945,-580.29898971,0.00017415,2]
[357683076,1744330862357,-151.28,0.00017415,2]
[357683077,1744330867023,-179.21,0.00017415,2]
[357683079,1744331232181,-864.22101029,0.00017415,2]
[357683080,1744331232204,-2174.27676,0.00018715,2]
[357683081,1744331232227,-179.21,0.00018809,2]
[357683082,1744331232248,-152.66,0.00018904,2]
[357683083,1744331232269,-230.99,0.00018909,2]
[357683084,1744331232293,-152.66,0.0001891,2]
[357683085,1744331232314,-152.66,0.00018917,2]
[357683086,1744331232336,-152.66,0.00018923,2]
[357683087,1744331232357,-152.66,0.00018929,2]
[357683088,1744331232380,-1000.0,0.00018933,2]
[357683089,1744331232400,-250.0,0.00018933,2]
[357683090,1744331232422,-152.66,0.00018935,2]
[357683091,1744331232444,-152.66,0.00018942,2]
[357683092,1744331232467,-152.66,0.00018948,2]
[357683093,1744331232489,-152.66,0.00018954,2]
[357683094,1744331232510,-152.66,0.00018961,2]
[357683095,1744331232532,-152.66,0.00018967,2]
[357683096,1744331232553,-152.66,0.00018973,2]
[357683097,1744331232574,-152.66,0.0001898,2]
[357683098,1744331232594,-152.66,0.00018986,2]
[357683099,1744331232615,-152.66,0.00018992,2]
[357683100,1744331232636,-152.66,0.00018999,2]
[357683101,1744331232656,-152.37,0.00018999,2]
[357683102,1744331232676,-5230.40254311,0.00019,2]
[357683103,1744331236130,-2091.77186974,0.00019,2]
[357683104,1744331243127,-1433.92099984,0.00019,2]
[357683105,1744331324511,258.57934386,0.000107,2]
[357683126,1744331432047,-200.0,0.00018918,7]
[357683127,1744331432056,-91.63362622,0.00018961,2]
[357683128,1744331432067,-1535.35637378,0.00018961,2]
[357683129,1744331432076,-3127.54030514,0.00019,2]
[357683130,1744331432085,-167.97956071,0.00019007,2]
[357683131,1744331432095,-215.73,0.00019077,2]
[357683132,1744331432103,-500.0,0.00019077,2]
[357683133,1744331432112,-530.82,0.00019107,2]
[357683134,1744331432121,-250.0,0.00019157,2]
[357683135,1744331432130,-300.0,0.00019235,2]
[357683136,1744331432139,-1852.42,0.00019236,2]
[357683137,1744331432147,-9524.2,0.00019236,2]
[357683138,1744331432157,-439.77,0.00019333,2]
[357683140,1744331432167,-946.9977692,0.00019399,2]
[357683142,1744331432176,-1182.394,0.00019535,2]
[357683143,1744331432185,-1857.38599117,0.00019535,2]
[357683144,1744331432195,-1219.17424482,0.00019535,2]
[357683145,1744331432274,-20823.43976401,0.00019535,2]
[357683146,1744331432282,-746.58,0.00019535,2]
[357683147,1744331432291,-150.99,0.00019535,2]
[357683148,1744331432300,-150.99,0.00019535,2]
[357683149,1744331432309,-1124.04,0.00019535,2]
[357683150,1744331432318,-851.77,0.00019535,2]
[357683151,1744331432327,-189.52,0.00019535,2]
[357683152,1744331432337,-167.9795607,0.00019579,2]
[357683153,1744331432346,-200.0,0.000196,7]
[357683154,1744331432355,-35276.87,0.00019605,2]
[357683155,1744331432364,-1775.01,0.00019679,2]
[357683156,1744331432372,-500.0,0.000197,7]
[357683157,1744331432382,-800.0,0.000198,7]
[357683158,1744331432391,-1000.0,0.000199,2]
[357683159,1744331432400,-184.76997001,0.000199,2]
[357683160,1744331432408,-1000.0,0.000199,7]
[357683161,1744331432418,-3945.6751,0.000199,2]
[357683162,1744331432427,-2481.14916222,0.000199,2]
[357683163,1744331432436,-163.0694071,0.000199,2]
[357683164,1744331432445,-500.0,0.00019973,2]
[357683165,1744331432454,-500.0,0.00019973,2]
[357683166,1744331432463,-21410.5271894,0.00019986,2]
[357683167,1744331432472,-6420.0073287,0.00019986,2]
[357683168,1744331432481,-1123.8909418,0.00019986,2]
[357683169,1744331432490,-873.68,0.0001999,2]
[357683170,1744331432499,-873.68,0.0001999,2]
[357683171,1744331432508,-873.68,0.0001999,2]
[357683172,1744331432517,-873.68,0.0001999,2]
[357683173,1744331432526,-873.68,0.0001999,2]
[357683174,1744331432535,-873.68,0.0001999,2]
[357683175,1744331432543,-873.68,0.0001999,2]
[357683176,1744331432552,-873.68,0.0001999,2]
[357683177,1744331432561,-873.68,0.0001999,2]
[357683178,1744331432570,-873.68,0.0001999,2]
[357683179,1744331432578,-3468.21169629,0.00019998,2]
[357683180,1744331432587,-3065.80254926,0.00019998,2]
[357683181,1744331432599,-22.93962614,0.00019998,2]
[357683182,1744331432608,-562.0,0.0002,2]
[357683183,1744331432618,-69109.18822779,0.0002,2]
[357683184,1744331432680,-339.44976473,0.0002,2]
[357683185,1744331432691,-536.31990805,0.0002,2]
[357683193,1744331437995,-167.03500245,0.0001999,2]
[357683194,1744331438004,-167.03500245,0.0001999,2]
[357683195,1744331438013,-1274.23355891,0.0002,2]
[357683196,1744331438160,-503615.1146589,0.0002,2]
[357683197,1744331438170,-188797.87997057,0.0002,2]
[357683198,1744331438181,-251070.71969655,0.0002,2]
[357683200,1744331440225,-9600.94984916,0.0002,2]
[357683201,1744331440302,-133070.64478801,0.0002,2]
[357683202,1744331440311,-1000.0,0.0002,2]
[357683203,1744331440320,-1000.0,0.0002,2]
[357683204,1744331440329,-1000.0,0.0002,2]
[357683205,1744331440340,-1000.0,0.0002,2]
[357683206,1744331440354,-1000.0,0.0002,2]
[357683207,1744331440363,-1000.0,0.0002,2]
[357683208,1744331440373,-1000.0,0.0002,2]
[357683209,1744331440383,-1000.0,0.0002,2]
[357683210,1744331440392,-1000.0,0.0002,2]
[357683211,1744331440402,-1000.0,0.0002,2]
[357683212,1744331440411,-1000.0,0.0002,2]
[357683213,1744331440420,-1000.0,0.0002,2]
[357683214,1744331440431,-1000.0,0.0002,2]
[357683215,1744331440440,-1000.0,0.0002,2]
[357683216,1744331440450,-1000.0,0.0002,2]
[357683217,1744331440459,-1000.0,0.0002,2]
[357683218,1744331440469,-1000.0,0.0002,2]
[357683219,1744331440478,-1000.0,0.0002,2]
[357683220,1744331440488,-1000.0,0.0002,2]
[357683221,1744331440498,-1000.0,0.0002,2]
[357683222,1744331440514,-1000.0,0.0002,2]
[357683223,1744331440523,-1000.0,0.0002,2]
[357683224,1744331440533,-1000.0,0.0002,2]
[357683225,1744331440542,-1000.0,0.0002,2]
[357683226,1744331440551,-1000.0,0.0002,2]
[357683227,1744331440561,-1000.0,0.0002,2]
[357683228,1744331440571,-1000.0,0.0002,2]
[357683229,1744331440580,-1000.0,0.0002,2]
[357683230,1744331440590,-1000.0,0.0002,2]
[357683231,1744331440599,-1000.0,0.0002,2]
[357683232,1744331440608,-1000.0,0.0002,2]
[357683233,1744331440617,-1000.0,0.0002,2]
[357683234,1744331440626,-1000.0,0.0002,2]
[357683235,1744331440636,-1000.0,0.0002,2]
[357683236,1744331440645,-1000.0,0.0002,2]
[357683237,1744331440654,-1000.0,0.0002,2]
[357683238,1744331440664,-1000.0,0.0002,2]
[357683239,1744331440673,-1000.0,0.0002,2]
[357683240,1744331440682,-1000.0,0.0002,2]
[357683241,1744331440692,-1000.0,0.0002,2]
[357683242,1744331440702,-1000.0,0.0002,2]
[357683244,1744331440711,-1000.0,0.0002,2]
[357683246,1744331440720,-1000.0,0.0002,2]
[357683248,1744331440729,-1000.0,0.0002,2]
[357683250,1744331440739,-1000.0,0.0002,2]
[357683252,1744331440748,-1000.0,0.0002,2]
[357683254,1744331440757,-1000.0,0.0002,2]
[357683256,1744331440767,-1000.0,0.0002,2]
[357683257,1744331440776,-1000.0,0.0002,2]
[357683258,1744331440785,-1000.0,0.0002,2]
[357683259,1744331440794,-1000.0,0.0002,2]
[357683260,1744331440804,-1000.0,0.0002,2]
[357683261,1744331440813,-1000.0,0.0002,2]
[357683262,1744331440822,-1000.0,0.0002,2]
[357683263,1744331440832,-1000.0,0.0002,2]
[357683264,1744331440841,-1000.0,0.0002,2]
[357683265,1744331440850,-1000.0,0.0002,2]
[357683266,1744331440859,-1000.0,0.0002,2]
[357683267,1744331440869,-1000.0,0.0002,2]
[357683268,1744331440878,-1000.0,0.0002,2]
[357683269,1744331440887,-1000.0,0.0002,2]
[357683270,1744331440896,-1000.0,0.0002,2]
[357683271,1744331440906,-1000.0,0.0002,2]
[357683272,1744331440915,-1000.0,0.0002,2]
[357683273,1744331440925,-1000.0,0.0002,2]
[357683274,1744331440935,-1000.0,0.0002,2]
[357683275,1744331440944,-1000.0,0.0002,2]
[357683276,1744331440953,-1000.0,0.0002,2]
[357683277,1744331440963,-1000.0,0.0002,2]
[357683278,1744331440973,-1000.0,0.0002,2]
[357683279,1744331440983,-774.0,0.0002,2]
[357683280,1744331440992,-1872078.07212118,0.0002,2]
[357683281,1744331441002,-159.0,0.0002,2]
[357683282,1744331441011,-215679.81523178,0.0002,2]
[357683283,1744331441024,-2658.91290404,0.0002,2]
[357683284,1744331441085,-178988.48395843,0.0002,2]
[357683285,1744331441097,-97838.31071003,0.0002,2]
[357683286,1744331441108,-6945.00593154,0.0002,2]
[357683287,1744331441168,-0.01259124,0.0002,2]
[357683303,1744331443438,-312.57700775,0.0002,2]
[357683306,1744331446247,-520.7992,0.000199,2]
[357683307,1744331446259,-195.42299225,0.0002,2]
[357683308,1744331446269,-8453.74409026,0.0002,2]
[357683309,1744331446280,-510.00939672,0.0002,2]
[357683310,1744331446291,-33905.04089612,0.0002,2]
[357683312,1744331793727,200.0,0.00033,120]
[357683313,1744331852224,-710.2483269,0.00019399,2]
[357683314,1744331852250,-600.0,0.000196,7]
[357683315,1744331852276,-1300.0,0.000197,7]
[357683316,1744331852301,-1182.86,0.00019795,2]
[357683317,1744331852326,-1900.0,0.000198,7]
[357683318,1744331852351,-300.0,0.00019869,2]
[357683319,1744331852379,-8006.8916731,0.0001987,2]
[357683320,1744331857476,-15893.1083269,0.0001987,2]
[357683321,1744331857500,-355.13506531,0.00019873,2]
[357683322,1744331857524,-7419.63361516,0.000199,2]
[357683323,1744331857548,-1332.12299263,0.000199,2]
[357683324,1744331858490,-25000.0,0.000199,2]
[357683325,1744331859670,-25000.0,0.000199,2]
[357683326,1744331860439,-25000.0,0.000199,2]
[357683327,1744331861849,-25000.0,0.000199,2]
[357683328,1744331862877,-12606.39083329,0.000199,2]
[357683329,1744331862901,-2600.0,0.000199,7]
[357683330,1744331862925,-150.99,0.000199,2]
[357683331,1744331862948,-178.55335854,0.000199,2]
[357683332,1744331862972,-5424.6,0.000199,2]
[357683333,1744331862995,-3613.47795572,0.0001994,2]
[357683334,1744331863019,-425.98785245,0.00019973,2]
[357683335,1744331863805,-74.01214755,0.00019973,2]
[357683336,1744331863830,-500.71468123,0.00019973,2]
[357683337,1744331863854,-513.24563818,0.00019973,2]
[357683338,1744331863878,-5998.0195126,0.00019986,2]
[357683339,1744331863902,-169.6645308,0.00019986,2]
[357683340,1744331863926,-871.1627211,0.00019986,2]
[357683341,1744331863950,-16873.18076854,0.00019986,2]
[357683342,1744331864949,-3284.47573166,0.00019986,2]
[357683343,1744331864973,-4880.02863779,0.00019997,2]
[357683344,1744331864996,-1000.0,0.00019998,2]
[357683345,1744331865019,-1000.0,0.00019998,2]
[357683346,1744331865042,-1000.0,0.00019998,2]
[357683347,1744331865064,-1000.0,0.00019998,2]
[357683348,1744331865087,-1000.0,0.00019998,2]
[357683349,1744331865110,-1000.0,0.00019998,2]
[357683350,1744331865135,-1000.0,0.00019998,2]
[357683351,1744331865158,-1000.0,0.00019998,2]
[357683352,1744331865183,-1000.0,0.00019998,2]
[357683353,1744331865207,-1000.0,0.00019998,2]
[357683354,1744331865230,-1000.0,0.00019998,2]
[357683355,1744331865254,-1000.0,0.00019998,2]
[357683356,1744331865277,-1000.0,0.00019998,2]
[357683357,1744331865301,-1000.0,0.00019998,2]
[357683358,1744331865324,-1000.0,0.00019998,2]
[357683359,1744331865348,-1000.0,0.00019998,2]
[357683360,1744331865375,-835.49563055,0.00019998,2]
[357683361,1744332338596,5695.4,0.000305,60]
[357683362,1744332427106,-169.07,0.00016712,2]
[357683363,1744332427127,-250.0,0.00018384,2]
[357683364,1744332427149,-1004.42767166,0.00018384,2]
[357683365,1744332439139,-552.47422336,0.00018384,2]
[357683366,1744332448640,-112.30810498,0.00018384,2]
[357683367,1744332448663,-250.0,0.00019,2]
[357683368,1744332448686,-1457.153555,0.00019301,2]
[357683369,1744332448706,-162.55,0.00019365,2]
[357683370,1744332448727,-532.6862452,0.00019399,2]
[357683371,1744332448749,-162.01,0.00019425,3]
[357683372,1744332448770,-6960.72936534,0.00019435,2]
[357683374,1744332542473,-399.5146839,0.00019399,2]
[357683375,1744332542500,-5229.72229331,0.00019435,2]
[357683376,1744332542530,-5519.09376801,0.00019435,2]
[357683391,1744332632328,-299.6360129,0.00019399,2]
[357683392,1744332632338,-1405.217159,0.00019435,2]
[357683403,1744332638149,-961.87458146,0.00019435,2]
[357683404,1744332638250,-127276.93779497,0.00019435,2]
[357683405,1744332638260,-600.0,0.000196,7]
[357683406,1744332638269,-1300.0,0.000197,7]
[357683407,1744332638278,-250.0,0.00019742,2]
[357683408,1744332638287,-2000.0,0.000198,7]
[357683409,1744332638297,-1000.0,0.00019812,2]
[357683410,1744332638306,-200.0,0.00019838,2]
[357683411,1744332638316,-2700.0,0.000199,7]
[357683412,1744332638325,-163.0694071,0.000199,2]
[357683413,1744332638334,-214.41071202,0.000199,2]
[357683414,1744332638344,-500.9227074,0.00019973,2]
[357683415,1744332638353,-345.4302494,0.00019973,2]
[357683416,1744332638362,-159.20797218,0.00019973,2]
[357683417,1744332638372,-503.25397582,0.00019973,2]
[357683418,1744332638381,-506.18732729,0.00019973,2]
[357683419,1744332638390,-500.0,0.00019973,2]
[357683420,1744332638400,-502.993354,0.00019973,2]
[357683421,1744332638409,-500.0,0.00019973,2]
[357683422,1744332638418,-500.0,0.00019973,2]
[357683423,1744332638427,-500.0,0.00019973,2]
[357683424,1744332638436,-500.0,0.00019973,2]
[357683425,1744332638446,-500.0,0.00019973,2]
[357683426,1744332638455,-591.7686495,0.00019986,2]
[357683427,1744332638464,-369.91265933,0.00019986,2]
[357683428,1744332638473,-13374.2026062,0.00019986,2]
[357683429,1744332638484,-203.2164941,0.00019986,2]
[357683430,1744332638493,-2572.3648774,0.00019986,2]
[357683431,1744332638503,-3920.7253401,0.00019986,2]
[357683432,1744332638512,-172.83,0.00019988,2]
[357683433,1744332638521,-172.83,0.0001999,2]
[357683435,1744332638530,-172.83,0.0001999,2]
[357683437,1744332638540,-172.83,0.0001999,2]
[357683439,1744332638550,-172.83,0.0001999,2]
[357683441,1744332638559,-164.50436945,0.00019998,2]
[357683443,1744332638568,-1000.0,0.00019998,2]
[357683445,1744332638577,-1000.0,0.00019998,2]
[357683447,1744332638586,-1000.0,0.00019998,2]
[357683448,1744332638595,-1000.0,0.00019998,2]
[357683449,1744332638604,-1000.0,0.00019998,2]
[357683450,1744332638612,-1000.0,0.00019998,2]
[357683451,1744332638621,-1000.0,0.00019998,2]
[357683452,1744332638630,-1000.0,0.00019998,2]
[357683453,1744332638639,-1000.0,0.00019998,2]
[357683454,1744332638652,-1000.0,0.00019998,2]
[357683455,1744332638661,-1000.0,0.00019998,2]
[357683456,1744332638670,-1000.0,0.00019998,2]
[357683457,1744332638679,-1000.0,0.00019998,2]
[357683458,1744332638689,-1000.0,0.00019998,2]
[357683459,1744332638697,-1000.0,0.00019998,2]
[357683460,1744332638706,-1000.0,0.00019998,2]
[357683461,1744332638715,-1000.0,0.00019998,2]
[357683462,1744332638726,-1000.0,0.00019998,2]
[357683463,1744332638737,-1000.0,0.00019998,2]
[357683464,1744332638747,-1000.0,0.00019998,2]
[357683465,1744332638757,-1000.0,0.00019998,2]
[357683466,1744332638766,-1000.0,0.00019998,2]
[357683467,1744332638776,-1000.0,0.00019998,2]
[357683468,1744332638787,-1000.0,0.00019998,2]
[357683469,1744332638796,-1000.0,0.00019998,2]
[357683470,1744332638806,-1000.0,0.00019998,2]
[357683471,1744332638815,-1000.0,0.00019998,2]
[357683472,1744332638825,-1000.0,0.00019998,2]
[357683473,1744332638835,-1000.0,0.00019998,2]
[357683474,1744332638844,-1000.0,0.00019998,2]
[357683475,1744332638854,-1000.0,0.00019998,2]
[357683476,1744332638863,-1000.0,0.00019998,2]
[357683477,1744332638873,-1000.0,0.00019998,2]
[357683478,1744332638882,-1000.0,0.00019998,2]
[357683479,1744332638892,-1000.0,0.00019998,2]
[357683480,1744332638901,-1000.0,0.00019998,2]
[357683481,1744332638911,-1000.0,0.00019998,2]
[357683482,1744332638921,-1000.0,0.00019998,2]
[357683483,1744332638930,-1000.0,0.00019998,2]
[357683484,1744332638940,-1000.0,0.00019998,2]
[357683485,1744332638949,-1000.0,0.00019998,2]
[357683486,1744332638959,-1000.0,0.00019998,2]
[357683487,1744332638968,-1000.0,0.00019998,2]
[357683488,1744332638978,-1000.0,0.00019998,2]
[357683489,1744332638988,-1000.0,0.00019998,2]
[357683490,1744332638997,-1000.0,0.00019998,2]
[357683491,1744332639007,-1000.0,0.00019998,2]
[357683492,1744332639016,-1000.0,0.00019998,2]
[357683493,1744332639026,-1000.0,0.00019998,2]
[357683494,1744332639036,-1000.0,0.00019998,2]
[357683495,1744332639046,-1000.0,0.00019998,2]
[357683496,1744332639055,-1000.0,0.00019998,2]
[357683497,1744332639064,-1000.0,0.00019998,2]
[357683498,1744332639073,-774.0,0.00019998,2]
[357683499,1744332639086,-475355.73613321,0.0002,2]
[357683500,1744332639104,-480041.87688256,0.0002,2]
[357683501,1744332639117,-2162.79670819,0.0002,2]
[357683502,1744332640372,-2024201.85043513,0.0002,2]
[357683503,1744332640381,-172.97842954,0.0002,2]
[357683504,1744332640390,-151.0,0.0002,2]
[357683505,1744332640400,-187.018455,0.0002,2]
[357683506,1744332640409,-187.018455,0.0002,2]
[357683507,1744332640418,-1400.0,0.0002,2]
[357683508,1744332640427,-159.0,0.0002,2]
[357683509,1744332640437,-200.0,0.0002,2]
[357683510,1744332640446,-2000.0,0.0002,4]
[357683511,1744332640456,-151.6,0.0002,2]
[357683512,1744332640465,-151.6,0.0002,2]
[357683513,1744332640475,-151.6,0.0002,2]
[357683514,1744332640485,-151.6,0.0002,2]
[357683515,1744332640495,-151.6,0.0002,2]